[Event "44th Chess Olympiad Open 2022"]
[Site "Chennai"]
[Date "2022.08.02"]
[Round "5.72"]
[White "Forbes, Garry"]
[Black "Albury, Noah"]
[Result "0-1"]
[WhiteElo "1908"]
[BlackElo "1324"]
[Annotator "NA RC"]
[PlyCount "72"]
[EventDate "2022.??.??"]
[TimeControl "60"]

1. d4 {[%emt 0:00:30]} Nf6 {[%emt 0:00:09]} 2. Nc3 {[%emt 0:00:00]} d5 {
[%emt 0:00:56]} 3. Bf4 {[%emt 0:00:00]} a6 {[%emt 0:02:53]} 4. e3 {[%emt 0:00:
00]} Bf5 {[%emt 0:01:54]} 5. f3 {[%emt 0:00:00]} e6 {[%emt 0:03:08]} 6. g4 {
[%emt 0:00:00]} Bg6 {[%emt 0:00:12]} 7. h4 {[%emt 0:00:00]} h5 {[%emt 0:05:33]}
8. g5 {[%emt 0:00:00]} Nfd7 {[%emt 0:00:50]} 9. Bd3 {[%emt 0:01:40]} Bxd3 {
[%emt 0:07:03]} 10. Qxd3 {[%emt 0:02:07]} g6 {[%emt 0:02:42]} 11. Nge2 {
[%emt 0:00:02]} Bd6 {[%emt 0:12:48]} 12. Bxd6 {[%emt 0:11:05]} cxd6 {[%emt 0:
00:00]} 13. Nf4 {[%emt 0:00:02]} Qa5 {[%emt 0:10:43]} 14. Nxg6 {[%emt 0:18:09]}
Rg8 {[%emt 0:11:51]} 15. Nf4 {[%emt 0:00:21]} Nc6 {[%emt 0:01:58]} 16. Kf2 {
[%emt 0:22:50]} Rc8 {[%emt 0:10:53]} 17. Qh7 {[%emt 0:03:10]} Ne7 {[%emt 0:00:
00]} 18. Qxh5 {[%emt 0:03:07]} Ng6 {[%emt 0:03:25]} 19. Qh7 {[%emt 0:19:12]}
Ke7 {[%emt 0:08:58]} 20. Nxg6+ {[%emt 0:04:04]} Rxg6 {[%emt 0:00:05]} 21. f4 {
[%emt 0:00:07]} Rcg8 {[%emt 0:03:22]} 22. Qh5 {[%emt 0:00:41]} b5 {[%emt 0:00:
00]} 23. Qe2 {[%emt 0:02:55]} b4 {[%emt 0:01:03]} 24. Nd1 {[%emt 0:00:04]} e5 {
[%emt 0:00:38]} 25. h5 {[%emt 0:05:48]} R6g7 {[%emt 0:00:53]} 26. c3 {[%emt 0:
00:00]} b3 {[%emt 0:02:19]} 27. a3 {[%emt 0:01:17]} f6 {[%emt 0:00:36]} 28. h6
{[%emt 0:01:07]} Rh7 {[%emt 0:01:05]} 29. Qg4 {[%emt 0:03:49]} fxg5 {[%emt 0:
00:00]} 30. fxg5 {[%emt 0:00:05]} Rf7+ {[%emt 0:00:43]} 31. Ke2 {[%emt 0:01:31]
} Qb5+ {[%emt 0:00:28]} 32. Ke1 {[%emt 0:00:46]} Rgf8 {[%emt 0:00:37]} 33. h7 {
[%emt 0:00:28]} Rf1+ {[%emt 0:00:29]} 34. Rxf1 {[%emt 0:00:32]} Qxf1+ {[%emt 0:
00:00]} 35. Kd2 {[%emt 0:00:01]} e4 {[%emt 0:00:25]} 36. g6 {[%emt 0:00:36]}
Qd3+ {[%emt 0:00:18]} 0-1

[Event "44th Chess Olympiad Open 2022"]
[Site "Chennai"]
[Date "2022.08.02"]
[Round "5.72"]
[White "Moncur, Cecil"]
[Black "Wojciechowski, Paul"]
[Result "1/2-1/2"]
[WhiteElo "1815"]
[BlackElo "1944"]
[Annotator "NA RC"]
[PlyCount "108"]
[EventDate "2022.??.??"]
[TimeControl "60"]

1. e4 {[%emt 0:00:07]} c5 {[%emt 0:00:09]} 2. Nc3 {[%emt 0:00:09]} d6 {[%emt 0:
00:00]} 3. g3 {[%emt 0:00:10]} Nc6 {[%emt 0:01:10]} 4. Bg2 {[%emt 0:00:17]} Nf6
{[%emt 0:01:24]} 5. d3 {[%emt 0:00:17]} g6 {[%emt 0:00:36]} 6. h3 {[%emt 0:00:
00]} Bg7 {[%emt 0:02:05]} 7. Be3 {[%emt 0:00:13]} a6 {[%emt 0:02:20]} 8. Qd2 {
[%emt 0:00:55]} Bd7 {[%emt 0:03:35]} 9. Nge2 {[%emt 0:00:27]} Rb8 {[%emt 0:00:
00]} 10. O-O {[%emt 0:01:10]} O-O {[%emt 0:03:28]} 11. f4 {[%emt 0:00:19]} e6 {
[%emt 0:02:09]} 12. g4 {[%emt 0:00:37]} b5 {[%emt 0:26:59]} 13. Ng3 {[%emt 0:
00:00]} Nd4 {[%emt 0:09:06]} 14. Nce2 {[%emt 0:03:00]} Nxe2+ {[%emt 0:00:44]}
15. Qxe2 {[%emt 0:00:31]} Qc7 {[%emt 0:04:58]} 16. f5 {[%emt 0:02:51]} exf5 {
[%emt 0:02:59]} 17. exf5 {[%emt 0:00:41]} Bc6 {[%emt 0:02:33]} 18. g5 {[%emt 0:
00:00]} Nd5 {[%emt 0:03:02]} 19. f6 {[%emt 0:00:18]} Nxe3 {[%emt 0:00:47]} 20.
Qxe3 {[%emt 0:03:31]} Rfe8 {[%emt 0:00:25]} 21. Qf2 {[%emt 0:03:02]} Bf8 {
[%emt 0:00:15]} 22. Rae1 {[%emt 0:01:31]} Bxg2 {[%emt 0:01:56]} 23. Qxg2 {
[%emt 0:01:34]} Qd7 {[%emt 0:01:36]} 24. Re2 {[%emt 0:09:49]} Rxe2 {[%emt 0:00:
00]} 25. Nxe2 {[%emt 0:00:11]} d5 {[%emt 0:00:19]} 26. Nf4 {[%emt 0:00:43]} d4
{[%emt 0:00:14]} 27. h4 {[%emt 0:00:54]} Re8 {[%emt 0:03:44]} 28. h5 {[%emt 0:
00:00]} Re5 {[%emt 0:01:03]} 29. hxg6 {[%emt 0:01:10]} fxg6 {[%emt 0:02:36]}
30. Nh3 {[%emt 0:03:49]} Qd5 {[%emt 0:04:07]} 31. Qf2 {[%emt 0:00:55]} Rf5 {
[%emt 0:00:53]} 32. Qg3 {[%emt 0:08:51]} Rxf1+ {[%emt 0:02:01]} 33. Kxf1 {
[%emt 0:00:27]} Bd6 {[%emt 0:01:19]} 34. Qg4 {[%emt 0:02:10]} Qf5+ {[%emt 0:00:
00]} 35. Qxf5 {[%emt 0:00:34]} gxf5 36. Kg2 {[%emt 0:01:16]} Kf7 {[%emt 0:00:
00]} 37. Kf3 {[%emt 0:00:19]} Kg6 {[%emt 0:05:11]} 38. b3 {[%emt 0:03:25]} h6 {
[%emt 0:00:42]} 39. gxh6 {[%emt 0:00:58]} Kxh6 {[%emt 0:00:01]} 40. Nf4 {
[%emt 0:00:53]} Kg5 {[%emt 0:00:55]} 41. Nd5 {[%emt 0:34:37]} Kg6 {[%emt 0:00:
00]} 42. a4 {[%emt 0:01:42]} Kf7 {[%emt 0:00:00]} 43. axb5 {[%emt 0:00:17]}
axb5 44. c4 {[%emt 0:00:00]} dxc3 {[%emt 0:00:00]} 45. Nxc3 {[%emt 0:00:00]} b4
{[%emt 0:00:00]} 46. Ne2 {[%emt 0:00:00]} Kxf6 {[%emt 0:00:00]} 47. d4 {
[%emt 0:00:00]} cxd4 {[%emt 0:00:00]} 48. Nxd4 {[%emt 0:00:00]} Ke5 {[%emt 0:
00:00]} 49. Ne2 {[%emt 0:00:00]} Kd5 {[%emt 0:00:00]} 50. Ke3 {[%emt 0:00:00]}
f4+ {[%emt 0:00:00]} 51. Kf3 {[%emt 0:00:00]} Be5 {[%emt 0:00:00]} 52. Nc1 {
[%emt 0:00:00]} Kd4 {[%emt 0:00:00]} 53. Na2 {[%emt 0:00:00]} Bd6 {[%emt 0:00:
00]} 54. Nxb4 {[%emt 0:00:26]} Bxb4 {[%emt 0:00:02]} 1/2-1/2

[Event "44th Chess Olympiad Open 2022"]
[Site "Chennai"]
[Date "2022.08.02"]
[Round "5.72"]
[White "Lockhart, Kenville"]
[Black "Gurner, Jem"]
[Result "0-1"]
[WhiteElo "1551"]
[BlackElo "1800"]
[Annotator "NA RC"]
[PlyCount "90"]
[EventDate "2022.??.??"]
[TimeControl "60"]

1. e4 {[%emt 0:00:16]} g6 {[%emt 0:00:03]} 2. d4 {[%emt 0:01:45]} Bg7 {[%emt 0:
00:00]} 3. Nc3 {[%emt 0:00:32]} d6 {[%emt 0:00:05]} 4. h3 {[%emt 0:00:52]} a6 {
[%emt 0:00:41]} 5. a4 {[%emt 0:00:31]} b6 {[%emt 0:01:05]} 6. Nf3 {[%emt 0:00:
00]} Nd7 {[%emt 0:00:23]} 7. Bc4 {[%emt 0:01:44]} e6 {[%emt 0:00:47]} 8. O-O {
[%emt 0:00:27]} h6 {[%emt 0:01:13]} 9. Be3 {[%emt 0:01:43]} Bb7 {[%emt 0:00:22]
} 10. Bb3 {[%emt 0:01:12]} Ne7 {[%emt 0:00:32]} 11. Re1 {[%emt 0:01:40]} O-O {
[%emt 0:00:55]} 12. Qd2 {[%emt 0:03:49]} Kh7 {[%emt 0:00:17]} 13. Rad1 {
[%emt 0:01:28]} Rc8 {[%emt 0:04:37]} 14. Qd3 {[%emt 0:02:03]} Nb8 {[%emt 0:00:
00]} 15. Ne2 {[%emt 0:04:30]} d5 {[%emt 0:02:48]} 16. e5 {[%emt 0:00:29]} c5 {
[%emt 0:00:50]} 17. c4 {[%emt 0:02:03]} b5 {[%emt 0:14:25]} 18. axb5 {[%emt 0:
00:00]} axb5 {[%emt 0:03:08]} 19. dxc5 {[%emt 0:08:30]} bxc4 {[%emt 0:00:44]}
20. Bxc4 {[%emt 0:00:11]} dxc4 {[%emt 0:00:05]} 21. Qxc4 {[%emt 0:00:45]} Bd5 {
[%emt 0:02:41]} 22. Qf4 {[%emt 0:11:10]} Qc7 {[%emt 0:04:01]} 23. Ned4 {
[%emt 0:01:27]} Qb7 {[%emt 0:06:12]} 24. Rd2 {[%emt 0:05:38]} Nbc6 {[%emt 0:00:
00]} 25. Nxc6 {[%emt 0:06:46]} Nxc6 {[%emt 0:00:34]} 26. Bd4 {[%emt 0:02:09]}
Nxd4 {[%emt 0:02:45]} 27. Qxd4 {[%emt 0:00:32]} Bxf3 {[%emt 0:00:57]} 28. gxf3
{[%emt 0:00:03]} Qxf3 {[%emt 0:00:23]} 29. Re3 {[%emt 0:00:19]} Qf5 {[%emt 0:
00:00]} 30. Qc3 {[%emt 0:04:43]} Qg5+ {[%emt 0:04:09]} 31. Kf1 {[%emt 0:01:41]}
Rfd8 {[%emt 0:02:10]} 32. Rxd8 {[%emt 0:00:28]} Qxd8 {[%emt 0:00:33]} 33. b4 {
[%emt 0:00:20]} Qd1+ {[%emt 0:00:48]} 34. Re1 {[%emt 0:02:05]} Qd5 {[%emt 0:00:
00]} 35. Kg1 {[%emt 0:01:28]} Bf8 {[%emt 0:04:16]} 36. Rc1 {[%emt 0:02:05]} Be7
{[%emt 0:03:08]} 37. f4 {[%emt 0:06:55]} Ra8 {[%emt 0:03:14]} 38. Qc4 {[%emt 0:
00:00]} Qd2 {[%emt 0:01:34]} 39. Qc3 {[%emt 0:06:30]} Qxf4 {[%emt 0:02:16]} 40.
Rf1 {[%emt 0:01:36]} Qg5+ {[%emt 0:00:17]} 41. Kh1 {[%emt 0:30:05]} Ra2 {
[%emt 0:35:25]} 42. Rxf7+ {[%emt 0:03:07]} Kg8 {[%emt 0:00:26]} 43. Qf3 {
[%emt 0:00:03]} Ra1+ {[%emt 0:00:15]} 44. Qf1 {[%emt 0:00:37]} Rxf1+ {[%emt 0:
00:00]} 45. Rxf1 {[%emt 0:00:12]} Qxe5 {[%emt 0:00:14]} 0-1

[Event "44th Chess Olympiad Open 2022"]
[Site "Chennai"]
[Date "2022.08.02"]
[Round "5.73"]
[White "Boidiya, Sidi"]
[Black "Charles, Cleophas"]
[Result "1-0"]
[WhiteElo "1997"]
[BlackElo "1593"]
[Annotator "NA RC"]
[PlyCount "59"]
[EventDate "2022.??.??"]
[TimeControl "60"]

1. e4 {[%emt 0:00:04]} e5 {[%emt 0:00:13]} 2. Bc4 {[%emt 0:00:08]} Bc5 {
[%emt 0:00:57]} 3. Nf3 {[%emt 0:00:22]} d6 {[%emt 0:01:23]} 4. c3 {[%emt 0:00:
00]} Bg4 {[%emt 0:04:56]} 5. Qb3 {[%emt 0:02:40]} Bb6 {[%emt 0:12:02]} 6. Bxf7+
{[%emt 0:01:19]} Kf8 {[%emt 0:01:13]} 7. Bxg8 {[%emt 0:02:56]} Rxg8 {[%emt 0:
00:00]} 8. Qd1 {[%emt 0:02:50]} Nd7 {[%emt 0:07:04]} 9. d3 {[%emt 0:01:27]} Ke8
{[%emt 0:17:47]} 10. a4 {[%emt 0:05:42]} a5 {[%emt 0:07:05]} 11. Be3 {[%emt 0:
00:00]} Rf8 {[%emt 0:05:04]} 12. Nbd2 {[%emt 0:00:40]} Nc5 {[%emt 0:02:24]} 13.
Qc2 {[%emt 0:00:30]} Qe7 {[%emt 0:04:41]} 14. b4 {[%emt 0:05:13]} Ne6 {[%emt 0:
00:00]} 15. O-O {[%emt 0:04:38]} Nf4 {[%emt 0:07:17]} 16. Rfb1 {[%emt 0:05:09]}
h5 {[%emt 0:11:54]} 17. bxa5 {[%emt 0:01:39]} Bxa5 {[%emt 0:02:51]} 18. Kf1 {
[%emt 0:02:22]} b6 {[%emt 0:01:41]} 19. d4 {[%emt 0:01:36]} Qe6 {[%emt 0:00:47]
} 20. Bxf4 {[%emt 0:01:31]} Rxf4 {[%emt 0:00:33]} 21. Qb3 {[%emt 0:01:15]} Qe7
{[%emt 0:00:50]} 22. dxe5 {[%emt 0:01:08]} dxe5 {[%emt 0:00:22]} 23. Qb5+ {
[%emt 0:00:18]} Bd7 {[%emt 0:00:36]} 24. Qc4 {[%emt 0:01:28]} Rd8 {[%emt 0:00:
00]} 25. Nb3 {[%emt 0:00:25]} Be6 {[%emt 0:00:42]} 26. Qc6+ {[%emt 0:00:37]}
Bd7 {[%emt 0:00:14]} 27. Qg6+ {[%emt 0:00:24]} Kf8 {[%emt 0:00:52]} 28. Nxa5 {
[%emt 0:00:23]} bxa5 {[%emt 0:00:16]} 29. Qxh5 {[%emt 0:02:26]} Rxe4 {[%emt 0:
00:00]} 30. Ng5 {[%emt 0:00:18]} 1-0

[Event "44th Chess Olympiad Open 2022"]
[Site "Chennai"]
[Date "2022.08.02"]
[Round "5.73"]
[White "Njau, Albert"]
[Black "Cheikhna, Mohamed Lemine"]
[Result "1-0"]
[WhiteElo "1842"]
[BlackElo "1899"]
[Annotator "NA"]
[PlyCount "67"]
[EventDate "2022.??.??"]
[TimeControl "60"]

1. g3 {[%emt 0:00:11]} d5 {[%emt 0:00:16]} 2. Nf3 {[%emt 0:00:51]} Nf6 {
[%emt 0:00:29]} 3. Bg2 {[%emt 0:00:48]} e6 {[%emt 0:04:37]} 4. O-O {[%emt 0:00:
00]} Bd6 {[%emt 0:00:14]} 5. d4 {[%emt 0:00:43]} Nbd7 {[%emt 0:00:32]} 6. c4 {
[%emt 0:02:13]} c6 {[%emt 0:00:18]} 7. Nbd2 {[%emt 0:01:44]} O-O {[%emt 0:00:
00]} 8. cxd5 {[%emt 0:01:27]} exd5 {[%emt 0:00:12]} 9. Nb3 {[%emt 0:03:48]} Ne4
{[%emt 0:02:36]} 10. Bf4 {[%emt 0:04:51]} Qc7 {[%emt 0:04:15]} 11. Qc1 {
[%emt 0:01:01]} Re8 {[%emt 0:04:17]} 12. Rd1 {[%emt 0:04:15]} Nf8 {[%emt 0:00:
00]} 13. Bxd6 {[%emt 0:09:57]} Qxd6 {[%emt 0:04:39]} 14. Qf4 {[%emt 0:02:05]}
Qd8 {[%emt 0:08:09]} 15. Ne5 {[%emt 0:07:47]} f6 {[%emt 0:02:50]} 16. Nd3 {
[%emt 0:03:22]} Ng6 {[%emt 0:02:11]} 17. Qc1 {[%emt 0:03:31]} Bf5 {[%emt 0:00:
00]} 18. Bf3 {[%emt 0:06:35]} Bh3 {[%emt 0:11:19]} 19. Nf4 {[%emt 0:06:27]}
Nxf4 {[%emt 0:02:24]} 20. Qxf4 {[%emt 0:10:08]} g5 {[%emt 0:01:25]} 21. Qc1 {
[%emt 0:02:17]} Qc8 {[%emt 0:02:01]} 22. Bh5 {[%emt 0:02:15]} Re7 {[%emt 0:00:
00]} 23. Rd3 {[%emt 0:05:05]} Qf8 {[%emt 0:08:34]} 24. f3 {[%emt 0:03:42]} Nd6
{[%emt 0:01:44]} 25. g4 {[%emt 0:02:10]} Rxe2 {[%emt 0:01:17]} 26. Re3 {
[%emt 0:02:43]} Rg2+ {[%emt 0:00:13]} 27. Kh1 {[%emt 0:00:27]} Nc4 {[%emt 0:00:
00]} 28. Re6 {[%emt 0:03:31]} Nxb2 {[%emt 0:01:31]} 29. Nc5 {[%emt 0:01:03]}
Kg7 {[%emt 0:05:50]} 30. Qe3 {[%emt 0:01:10]} b6 {[%emt 0:03:13]} 31. Re7+ {
[%emt 0:00:49]} Kh8 {[%emt 0:00:52]} 32. Nd7 {[%emt 0:00:47]} Rd8 {[%emt 0:00:
00]} 33. Nxf8 {[%emt 0:00:08]} Rxf8 {[%emt 0:00:11]} 34. Re8 {[%emt 0:00:55]}
1-0

[Event "44th Chess Olympiad Open 2022"]
[Site "Chennai"]
[Date "2022.08.02"]
[Round "5.73"]
[White "Hassan Sidi Mohamed Cheikh"]
[Black "Mlawa, Hemed"]
[Result "0-1"]
[WhiteElo "1825"]
[BlackElo "1896"]
[Annotator "NA RC"]
[PlyCount "78"]
[EventDate "2022.??.??"]
[TimeControl "60"]

1. d4 {[%emt 0:00:03]} d5 {[%emt 0:00:16]} 2. Nc3 {[%emt 0:01:31]} Nf6 {
[%emt 0:00:43]} 3. Bg5 {[%emt 0:00:06]} e6 {[%emt 0:01:37]} 4. e4 {[%emt 0:00:
00]} dxe4 {[%emt 0:00:24]} 5. Nxe4 {[%emt 0:00:08]} Be7 {[%emt 0:00:06]} 6.
Bxf6 {[%emt 0:00:07]} Bxf6 {[%emt 0:00:40]} 7. Nf3 {[%emt 0:00:11]} O-O {
[%emt 0:00:19]} 8. Qd2 {[%emt 0:00:12]} a5 {[%emt 0:06:29]} 9. O-O-O {[%emt 0:
00:00]} a4 {[%emt 0:00:10]} 10. Qf4 {[%emt 0:00:45]} Nd7 {[%emt 0:01:01]} 11.
a3 {[%emt 0:00:48]} c6 {[%emt 0:01:14]} 12. h4 {[%emt 0:00:56]} b5 {[%emt 0:00:
00]} 13. Ne5 {[%emt 0:05:55]} Qc7 {[%emt 0:02:08]} 14. Nxf6+ {[%emt 0:01:49]}
Nxf6 {[%emt 0:00:10]} 15. g4 {[%emt 0:03:07]} b4 {[%emt 0:00:20]} 16. Rh3 {
[%emt 0:00:19]} Nd5 {[%emt 0:25:40]} 17. Qe4 {[%emt 0:00:48]} Ba6 {[%emt 0:00:
00]} 18. Nc4 {[%emt 0:02:03]} Qf4+ {[%emt 0:00:17]} 19. Qxf4 {[%emt 0:01:16]}
Nxf4 {[%emt 0:04:07]} 20. Rf3 {[%emt 0:00:14]} Nd5 {[%emt 0:22:44]} 21. Ne5 {
[%emt 0:05:23]} Bxf1 {[%emt 0:11:28]} 22. Rxf1 {[%emt 0:00:21]} bxa3 {[%emt 0:
00:00]} 23. Rxa3 {[%emt 0:00:38]} Rfc8 {[%emt 0:01:07]} 24. Nd7 {[%emt 0:00:53]
} Rd8 {[%emt 0:04:53]} 25. Nc5 {[%emt 0:03:10]} Nb6 {[%emt 0:01:06]} 26. c3 {
[%emt 0:02:50]} e5 {[%emt 0:02:33]} 27. Rd1 {[%emt 0:01:04]} Rd5 {[%emt 0:00:
00]} 28. Nd3 {[%emt 0:06:04]} exd4 {[%emt 0:00:45]} 29. Nb4 {[%emt 0:01:27]}
Rd6 {[%emt 0:01:41]} 30. Rxd4 {[%emt 0:00:00]} Rf6 {[%emt 0:00:21]} 31. Nd3 {
[%emt 0:03:18]} Rf3 {[%emt 0:02:50]} 32. b3 {[%emt 0:00:07]} c5 {[%emt 0:00:34]
} 33. Rd6 {[%emt 0:00:15]} c4 {[%emt 0:00:47]} 34. Rxb6 {[%emt 0:00:47]} Rxd3 {
[%emt 0:00:35]} 35. bxa4 {[%emt 0:01:32]} Rad8 {[%emt 0:00:19]} 36. Rb1 {
[%emt 0:01:05]} Rd1+ {[%emt 0:01:38]} 37. Kb2 {[%emt 0:00:17]} Rb8+ {[%emt 0:
00:00]} 38. Kc2 {[%emt 0:00:36]} Rdxb1 {[%emt 0:00:17]} 39. Ra2 Rf1 {[%emt 0:
00:00]} 0-1

[Event "44th Chess Olympiad Open 2022"]
[Site "Chennai"]
[Date "2022.08.02"]
[Round "5.73"]
[White "Mdoe, Yusuf"]
[Black "Mohamed Abderrahim, Taleb Mohamed"]
[Result "0-1"]
[WhiteElo "1722"]
[BlackElo "2084"]
[Annotator "NA RC"]
[PlyCount "102"]
[EventDate "2022.??.??"]
[TimeControl "60"]

1. c4 {[%emt 0:00:38]} e5 {[%emt 0:00:56]} 2. Nc3 {[%emt 0:00:14]} Nf6 {
[%emt 0:01:51]} 3. g3 {[%emt 0:00:16]} Nc6 {[%emt 0:01:57]} 4. a3 {[%emt 0:00:
00]} Be7 {[%emt 0:04:11]} 5. Bg2 {[%emt 0:00:18]} O-O {[%emt 0:02:58]} 6. e3 {
[%emt 0:00:07]} Re8 {[%emt 0:05:43]} 7. b4 {[%emt 0:00:45]} e4 {[%emt 0:09:58]}
8. Qc2 {[%emt 0:01:41]} Bxb4 {[%emt 0:10:12]} 9. Nxe4 {[%emt 0:00:29]} Be7 {
[%emt 0:04:13]} 10. Bb2 {[%emt 0:00:57]} h6 {[%emt 0:02:38]} 11. Ne2 {[%emt 0:
00:00]} Nxe4 {[%emt 0:02:23]} 12. Bxe4 {[%emt 0:00:18]} Bf6 {[%emt 0:00:35]}
13. d4 {[%emt 0:02:10]} d6 {[%emt 0:04:42]} 14. O-O {[%emt 0:00:34]} Ne7 {
[%emt 0:04:37]} 15. Nf4 {[%emt 0:00:27]} g6 {[%emt 0:02:02]} 16. Nxg6 {[%emt 0:
00:00]} fxg6 {[%emt 0:00:35]} 17. Bxg6 {[%emt 0:00:18]} Rf8 {[%emt 0:02:14]}
18. f3 {[%emt 0:06:36]} Nxg6 {[%emt 0:01:20]} 19. Qxg6+ {[%emt 0:01:20]} Bg7 {
[%emt 0:00:00]} 20. d5 {[%emt 0:01:55]} Qg5 {[%emt 0:01:53]} 21. Qxg5 {[%emt 0:
00:00]} hxg5 {[%emt 0:00:00]} 22. Bxg7 {[%emt 0:01:32]} Kxg7 {[%emt 0:00:00]}
23. Kg2 {[%emt 0:02:15]} g4 {[%emt 0:03:39]} 24. e4 {[%emt 0:00:27]} gxf3+ {
[%emt 0:01:42]} 25. Rxf3 {[%emt 0:00:10]} Bh3+ {[%emt 0:00:10]} 26. Kf2 {
[%emt 0:03:14]} Rxf3+ {[%emt 0:00:36]} 27. Kxf3 {[%emt 0:00:33]} Rf8+ {[%emt 0:
00:00]} 28. Ke3 {[%emt 0:00:52]} Bg2 {[%emt 0:05:40]} 29. Ra2 {[%emt 0:04:17]}
Rf3+ {[%emt 0:02:04]} 30. Kd4 {[%emt 0:07:00]} Bf1 {[%emt 0:00:16]} 31. e5 {
[%emt 0:02:46]} dxe5+ {[%emt 0:01:06]} 32. Kxe5 {[%emt 0:01:22]} Bxc4 {[%emt 0:
00:00]} 33. Rc2 {[%emt 0:00:39]} b5 {[%emt 0:03:32]} 34. a4 {[%emt 0:00:48]}
Re3+ {[%emt 0:03:54]} 35. Kf4 {[%emt 0:00:34]} Re2 {[%emt 0:00:52]} 36. Rc3 {
[%emt 0:01:20]} a6 {[%emt 0:01:27]} 37. axb5 {[%emt 0:00:20]} axb5 {[%emt 0:00:
00]} 38. h4 {[%emt 0:02:04]} Re7 {[%emt 0:01:27]} 39. g4 {[%emt 0:02:55]} Bxd5
{[%emt 0:00:43]} 40. Kg5 {[%emt 0:03:53]} b4 {[%emt 0:00:38]} 41. Rc2 {[%emt 0:
00:00]} b3 {[%emt 0:31:07]} 42. Rb2 {[%emt 0:00:27]} c5 {[%emt 0:00:10]} 43. h5
{[%emt 0:00:07]} c4 {[%emt 0:00:13]} 44. h6+ {[%emt 0:01:13]} Kh7 {[%emt 0:00:
00]} 45. Kf6 {[%emt 0:00:38]} Re6+ {[%emt 0:00:06]} 46. Kf5 {[%emt 0:01:02]} c3
{[%emt 0:00:11]} 47. Rf2 {[%emt 0:08:15]} b2 {[%emt 0:00:43]} 48. Rf1 {[%emt 0:
00:00]} b1=R {[%emt 0:03:02]} 49. Rxb1 {[%emt 0:00:53]} Be4+ {[%emt 0:00:08]}
50. Kxe6 {[%emt 0:01:23]} Bxb1 {[%emt 0:00:22]} 51. g5 {[%emt 0:00:30]} Bg6 0-1

[Event "44th Chess Olympiad Open 2022"]
[Site "Chennai"]
[Date "2022.08.02"]
[Round "5.74"]
[White "Dabuae, Thubalkain"]
[Black "Ayyad, Maher"]
[Result "0-1"]
[WhiteElo "1941"]
[BlackElo "2101"]
[Annotator "NA RC"]
[PlyCount "106"]
[EventDate "2022.??.??"]
[TimeControl "60"]

1. e4 {[%emt 0:00:13]} c5 {[%emt 0:00:04]} 2. Nf3 {[%emt 0:00:07]} e6 {[%emt 0:
00:00]} 3. Nc3 {[%emt 0:00:59]} Nc6 {[%emt 0:00:14]} 4. d4 {[%emt 0:00:42]}
cxd4 {[%emt 0:03:33]} 5. Nxd4 {[%emt 0:00:06]} Nf6 {[%emt 0:00:04]} 6. Be3 {
[%emt 0:00:18]} Bb4 {[%emt 0:00:06]} 7. Bd3 {[%emt 0:00:26]} d5 {[%emt 0:00:11]
} 8. O-O {[%emt 0:01:44]} Bxc3 {[%emt 0:01:15]} 9. bxc3 {[%emt 0:00:33]} dxe4 {
[%emt 0:00:03]} 10. Nxc6 {[%emt 0:00:33]} bxc6 {[%emt 0:00:23]} 11. Be2 {
[%emt 0:00:46]} Qxd1 {[%emt 0:01:05]} 12. Rfxd1 {[%emt 0:00:08]} Nd5 {[%emt 0:
00:00]} 13. Bd4 {[%emt 0:01:35]} f6 {[%emt 0:01:07]} 14. c4 {[%emt 0:01:01]}
Nb6 {[%emt 0:00:57]} 15. a4 {[%emt 0:00:47]} Nd7 {[%emt 0:04:09]} 16. f4 {
[%emt 0:00:17]} O-O {[%emt 0:05:24]} 17. a5 {[%emt 0:02:03]} Re8 {[%emt 0:00:
00]} 18. Bg4 {[%emt 0:08:01]} f5 {[%emt 0:00:48]} 19. Be2 {[%emt 0:03:35]} e5 {
[%emt 0:00:40]} 20. fxe5 {[%emt 0:01:06]} Nxe5 {[%emt 0:00:08]} 21. a6 {
[%emt 0:00:29]} f4 {[%emt 0:07:10]} 22. Ra5 {[%emt 0:01:52]} f3 {[%emt 0:13:55]
} 23. Bxe5 {[%emt 0:01:30]} fxe2 {[%emt 0:00:18]} 24. Re1 {[%emt 0:00:12]} Bxa6
{[%emt 0:00:22]} 25. Rxe2 {[%emt 0:00:39]} Bxc4 {[%emt 0:00:17]} 26. Rxe4 {
[%emt 0:00:24]} Bd5 {[%emt 0:00:09]} 27. Re3 {[%emt 0:01:35]} a6 {[%emt 0:00:
00]} 28. Bd4 {[%emt 0:02:31]} Rxe3 {[%emt 0:00:25]} 29. Bxe3 {[%emt 0:00:03]}
Re8 {[%emt 0:00:21]} 30. Kf2 {[%emt 0:00:25]} Rf8+ {[%emt 0:00:22]} 31. Kg3 {
[%emt 0:01:09]} Re8 {[%emt 0:00:32]} 32. Kf2 {[%emt 0:00:17]} Ra8 {[%emt 0:00:
00]} 33. g4 {[%emt 0:00:51]} Kf7 {[%emt 0:00:35]} 34. c3 {[%emt 0:00:23]} Ke6 {
[%emt 0:00:09]} 35. Bd4 {[%emt 0:00:13]} g5 {[%emt 0:00:24]} 36. Ke2 {[%emt 0:
00:00]} Rf8 {[%emt 0:01:47]} 37. h3 {[%emt 0:00:58]} Ra8 {[%emt 0:01:43]} 38.
Kd3 {[%emt 0:01:31]} Rg8 {[%emt 0:03:37]} 39. Ke3 {[%emt 0:00:49]} Rf8 {
[%emt 0:02:08]} 40. Ke2 {[%emt 0:00:24]} Rf7 {[%emt 0:01:05]} 41. Bh8 {[%emt 0:
00:00]} h6 {[%emt 0:30:17]} 42. Bd4 {[%emt 0:00:07]} Kd6 {[%emt 0:01:14]} 43.
Rc5 {[%emt 0:00:21]} Bg2 {[%emt 0:01:22]} 44. Rf5 {[%emt 0:03:23]} Rxf5 {
[%emt 0:00:18]} 45. gxf5 {[%emt 0:00:42]} Bxh3 {[%emt 0:00:12]} 46. f6 {
[%emt 0:00:23]} Be6 {[%emt 0:00:06]} 47. Kd3 {[%emt 0:02:06]} c5 {[%emt 0:00:
00]} 48. Be3 {[%emt 0:00:09]} Ke5 {[%emt 0:00:52]} 49. Bxc5 {[%emt 0:00:23]}
Kxf6 {[%emt 0:00:07]} 50. Bd4+ {[%emt 0:00:07]} Kf5 {[%emt 0:00:08]} 51. c4 {
[%emt 0:00:41]} h5 {[%emt 0:00:08]} 52. c5 {[%emt 0:00:24]} h4 {[%emt 0:00:09]}
53. Bg1 {[%emt 0:00:33]} g4 {[%emt 0:00:08]} 0-1

[Event "44th Chess Olympiad Open 2022"]
[Site "Chennai"]
[Date "2022.08.02"]
[Round "5.74"]
[White "BuKhalaf, Hussain"]
[Black "Dabuae, David"]
[Result "1/2-1/2"]
[WhiteElo "1813"]
[BlackElo "1707"]
[Annotator "NA RC"]
[PlyCount "63"]
[EventDate "2022.??.??"]
[TimeControl "60"]

1. c4 {[%emt 0:00:12]} Nf6 {[%emt 0:00:06]} 2. Nc3 {[%emt 0:00:08]} g6 {
[%emt 0:00:12]} 3. g3 {[%emt 0:00:03]} Bg7 {[%emt 0:00:10]} 4. Bg2 {[%emt 0:00:
00]} O-O {[%emt 0:00:09]} 5. e3 {[%emt 0:00:09]} d6 {[%emt 0:00:47]} 6. Nge2 {
[%emt 0:00:07]} c5 {[%emt 0:00:23]} 7. O-O {[%emt 0:00:17]} Nc6 {[%emt 0:00:04]
} 8. a3 {[%emt 0:00:23]} Rb8 {[%emt 0:04:47]} 9. Qa4 {[%emt 0:06:24]} Bd7 {
[%emt 0:00:32]} 10. Qc2 {[%emt 0:05:26]} Na5 {[%emt 0:00:31]} 11. b3 {[%emt 0:
00:00]} a6 {[%emt 0:00:45]} 12. Bb2 {[%emt 0:01:51]} b5 {[%emt 0:00:21]} 13.
cxb5 {[%emt 0:01:12]} axb5 {[%emt 0:00:08]} 14. Nd5 {[%emt 0:02:39]} Nxd5 {
[%emt 0:04:45]} 15. Bxg7 {[%emt 0:01:27]} Kxg7 {[%emt 0:00:15]} 16. Bxd5 {
[%emt 0:00:10]} Bc6 {[%emt 0:02:53]} 17. Nf4 {[%emt 0:03:32]} Qd7 {[%emt 0:00:
00]} 18. Qc3+ {[%emt 0:01:18]} e5 {[%emt 0:00:09]} 19. Qxa5 {[%emt 0:00:53]}
exf4 {[%emt 0:00:11]} 20. Qc3+ {[%emt 0:01:18]} Kg8 {[%emt 0:00:12]} 21. Bxc6 {
[%emt 0:00:26]} Qxc6 {[%emt 0:00:09]} 22. exf4 {[%emt 0:00:19]} Rfe8 {[%emt 0:
00:00]} 23. Rfe1 {[%emt 0:00:19]} b4 {[%emt 0:01:07]} 24. Rxe8+ {[%emt 0:04:51]
} Qxe8 {[%emt 0:00:11]} 25. Qe3 {[%emt 0:00:22]} Qc6 {[%emt 0:00:34]} 26. a4 {
[%emt 0:00:10]} Qd5 {[%emt 0:00:56]} 27. Rc1 {[%emt 0:01:14]} Kf8 {[%emt 0:00:
00]} 28. d4 {[%emt 0:02:36]} Re8 {[%emt 0:01:38]} 29. Qd3 {[%emt 0:01:02]} Re4
{[%emt 0:00:27]} 30. Qc4 {[%emt 0:00:56]} Qxd4 {[%emt 0:08:30]} 31. Qxd4 {
[%emt 0:00:16]} Rxd4 {[%emt 0:05:15]} 32. a5 {[%emt 0:00:47]} 1/2-1/2